[Event "47th GRE-chT 2019"]
[Site "Patra"]
[Date "2019.07.06"]
[Round "7.12"]
[White "Pancevski, Filip"]
[Black "Pavlidis, Antonios"]
[Result "0-1"]
[ECO "A24"]
[WhiteElo "2514"]
[BlackElo "2549"]
[Annotator "ChessBase"]
[PlyCount "106"]
[EventDate "2019.07.02"]
[EventCountry "GRE"]
[SourceTitle "playchess.com"]
[Source "ChessBase"]
[SourceQuality "1"]
[TimeControl "5400+30"]

1. c4 {[%emt 0:01:53]} Nf6 {[%emt 0:00:00]} 2. g3 {[%emt 0:02:08]} g6 {[%emt 0:00:00]} 3. Bg2 {[%emt 0:00:05]} Bg7 {[%emt 0:00:00]} 4. Nc3 {[%emt 0:00:10]} O-O {[%emt 0:00:05]} 5. Nf3 {[%emt 0:00:09]} d6 {[%emt 0:00:09]} 6. O-O {[%emt 0:00:33]} e5 {[%emt 0:00:17]} 7. d3 {[%emt 0:05:17]} h6 {[%emt 0:00:14]} 8. Rb1 {[%emt 0:00:37]} a5 {[%emt 0:00:02]} 9. a3 {[%emt 0:00:24]} Re8 {[%emt 0:18:04]} 10. Nd2 {[%emt 0:08:25]} Nh7 {[%emt 0:02:39]} 11. Qc2 {[%emt 0:01:58]} Nc6 {[%emt 0:00:12]} 12. e3 {[%emt 0:00:41]} h5 {[%emt 0:14:16]} 13. Nd5 {[%emt 0:18:04]} h4 {[%emt 0:02:34]} 14. b4 {[%emt 0:00:49]} axb4 {[%emt 0:00:01]} 15. axb4 {[%emt 0:01:37]} Ng5 {[%emt 0:06:57]} 16. f4 {[%emt 0:01:14]} exf4 {[%emt 0:20:20]} 17. Rxf4 {[%emt 0:03:07]} hxg3 {[%emt 0:00:11]} 18. hxg3 {[%emt 0:03:35]} Ne5 {[%emt 0:05:40]} 19. b5 {[%emt 0:11:00]} c6 {[%emt 0:02:03]} 20. bxc6 {[%emt 0:00:28]} bxc6 {[%emt 0:00:28]} 21. Nb6 {[%emt 0:00:06]} Rb8 {[%emt 0:02:24]} 22. Nxc8 {[%emt 0:00:05]} Rxb1 {[%emt 0:04:57]} 23. Qxb1 {[%emt 0:00:35]} Qxc8 {[%emt 0:01:50]} 24. d4 {[%emt 0:05:01]} Nh3+ {[%emt 0:02:04]} 25. Bxh3 {[%emt 0:00:03]} Qxh3 {[%emt 0:01:38]} 26. dxe5 {[%emt 0:00:35]} Qxg3+ {[%emt 0:00:46]} 27. Kf1 {[%emt 0:00:19]} Qh3+ {[%emt 0:01:48]} 28. Ke2 {[%emt 0:06:55]} dxe5 {[%emt 0:02:10]} 29. Rf2 {[%emt 0:02:56]} e4 {[%emt 0:01:46]} 30. Qb7 {[%emt 0:10:55]} Qe6 {[%emt 0:00:46]} 31. Bb2 {[%emt 0:02:15]} Re7 {[%emt 0:00:55]} 32. Qb8+ {[%emt 0:01:09]} Re8 {[%emt 0:00:57]} 33. Qb7 {[%emt 0:00:03]} Re7 {[%emt 0:03:51]} 34. Qb6 {[%emt 0:06:28]} Bxb2 {[%emt 0:00:02]} 35. Qxb2 {[%emt 0:00:13]} Qd6 {[%emt 0:01:12]} 36. Qc3 {[%emt 0:00:01]} c5 {[%emt 0:04:15]} 37. Rf6 {[%emt 0:00:04]} Qh2+ {[%emt 0:00:02]} 38. Rf2 {[%emt 0:00:02]} Qd6 {[%emt 0:01:06]} 39. Rf6 {[%emt 0:00:05]} Qh2+ {[%emt 0:00:00]} 40. Ke1 {[%emt 0:00:00]} Rd7 {[%emt 0:00:00]} 41. Nf1 {[%emt 0:00:00]} Qh4+ {[%emt 0:00:00]} 42. Rf2 {[%emt 0:00:00]} f5 {[%emt 0:00:00]} 43. Qe5 {[%emt 0:00:00]} Rd1+ {[%emt 0:00:00]} 44. Kxd1 {[%emt 0:00:00]} Qxf2 {[%emt 0:00:00]} 45. Qf4 {[%emt 0:00:00]} Qa2 {[%emt 0:00:00]} 46. Qb8+ {[%emt 0:00:00]} Kg7 {[%emt 0:00:00]} 47. Qc7+ {[%emt 0:00:00]} Kh6 {[%emt 0:00:00]} 48. Qxc5 {[%emt 0:00:00]} Qf2 {[%emt 0:00:00]} 49. Nd2 {[%emt 0:00:00]} g5 {[%emt 0:01:10]} 50. Qe5 {[%emt 0:00:00]} g4 {[%emt 0:03:00]} 51. Qf4+ {[%emt 0:00:00]} Qxf4 {[%emt 0:00:01]} 52. exf4 {[%emt 0:00:00]} g3 {[%emt 0:00:04]} 53. Ke2 {[%emt 0:00:00]} g2 {[%emt 0:02:50]} 0-1

[Event "47th GRE-chT 2019"]
[Site "Patra"]
[Date "2019.07.06"]
[Round "7.12"]
[White "Gouloutis, Nikolaos"]
[Black "Shoker, Samy"]
[Result "0-1"]
[ECO "A43"]
[WhiteElo "2367"]
[BlackElo "2496"]
[Annotator "ChessBase"]
[PlyCount "64"]
[EventDate "2019.07.02"]
[EventCountry "GRE"]
[SourceTitle "playchess.com"]
[Source "ChessBase"]
[SourceQuality "1"]
[TimeControl "5400+30"]

1. d4 {[%emt 0:00:00]} c5 {[%emt 0:00:16]} 2. c3 {[%emt 0:01:45]} Nf6 {[%emt 0:00:12]} 3. Nf3 {[%emt 0:00:43]} g6 {[%emt 0:00:24]} 4. Bg5 {[%emt 0:03:06]} Bg7 {[%emt 0:00:21]} 5. e3 {[%emt 0:00:08]} O-O {[%emt 0:00:26]} 6. Nbd2 {[%emt 0:00:22]} cxd4 {[%emt 0:08:49]} 7. exd4 {[%emt 0:02:10]} d6 {[%emt 0:00:12]} 8. Bc4 {[%emt 0:02:14]} Qb6 {[%emt 0:02:41]} 9. Bb3 {[%emt 0:05:23]} Nc6 {[%emt 0:00:20]} 10. Nc4 {[%emt 0:01:11]} Qc7 {[%emt 0:00:46]} 11. Bxf6 {[%emt 0:03:53]} Bxf6 {[%emt 0:00:28]} 12. O-O {[%emt 0:00:47]} b5 {[%emt 0:09:57]} 13. Ne3 {[%emt 0:01:56]} Bg7 {[%emt 0:00:48]} 14. Qe2 {[%emt 0:02:44]} Bd7 {[%emt 0:08:28]} 15. Rfe1 {[%emt 0:07:17]} Qd8 {[%emt 0:16:30]} 16. h4 {[%emt 0:05:24]} b4 {[%emt 0:04:52]} 17. h5 {[%emt 0:15:56]} bxc3 {[%emt 0:00:28]} 18. bxc3 {[%emt 0:00:06]} Na5 {[%emt 0:01:01]} 19. hxg6 {[%emt 0:01:43]} hxg6 {[%emt 0:00:07]} 20. Bd5 {[%emt 0:00:21]} Rc8 {[%emt 0:00:50]} 21. Rac1 {[%emt 0:00:37]} e6 {[%emt 0:04:11]} 22. Be4 {[%emt 0:00:04]} f5 {[%emt 0:07:26]} 23. Bb1 {[%emt 0:06:00]} Bh6 {[%emt 0:02:55]} 24. c4 {[%emt 0:05:45]} Qf6 {[%emt 0:00:36]} 25. c5 {[%emt 0:03:10]} dxc5 {[%emt 0:02:11]} 26. dxc5 {[%emt 0:00:18]} Nb7 {[%emt 0:02:43]} 27. Qa6 {[%emt 0:04:14]} Bc6 {[%emt 0:00:06]} 28. Qxa7 {[%emt 0:01:58]} Bf4 {[%emt 0:03:11]} 29. Bd3 {[%emt 0:06:23]} Rf7 {[%emt 0:06:16]} 30. Qa3 {[%emt 0:05:55]} Qh8 {[%emt 0:01:52]} 31. Bc4 {[%emt 0:07:16]} Bxf3 {[%emt 0:01:11]} 32. Bxe6 {[%emt 0:02:20]} Qh2+ {[%emt 0:01:15]} 0-1

[Event "47th GRE-chT 2019"]
[Site "Patra"]
[Date "2019.07.06"]
[Round "7.13"]
[White "Sandalakis, Angelos"]
[Black "Ioannidis, Evgenios"]
[Result "1-0"]
[ECO "B68"]
[WhiteElo "2429"]
[BlackElo "2378"]
[Annotator "NA"]
[PlyCount "55"]
[EventDate "2019.07.02"]
[EventCountry "GRE"]
[SourceTitle "playchess.com"]
[Source "ChessBase"]
[SourceQuality "1"]
[TimeControl "5400+30"]

1. e4 {[%emt 0:00:00]} c5 {[%emt 0:00:51]} 2. Nf3 {[%emt 0:00:00]} d6 {[%emt 0:00:21]} 3. d4 {[%emt 0:00:00]} cxd4 {[%emt 0:00:11]} 4. Nxd4 {[%emt 0:00:00]} Nf6 {[%emt 0:00:08]} 5. Nc3 {[%emt 0:00:00]} Nc6 {[%emt 0:00:41]} 6. Bg5 {[%emt 0:00:04]} e6 {[%emt 0:00:21]} 7. Qd2 {[%emt 0:00:05]} a6 {[%emt 0:00:22]} 8. O-O-O {[%emt 0:00:07]} Bd7 {[%emt 0:00:22]} 9. f4 {[%emt 0:00:09]} Be7 {[%emt 0:00:48]} 10. Nf3 {[%emt 0:03:50]} b5 {[%emt 0:01:32]} 11. e5 {[%emt 0:03:38]} b4 {[%emt 0:00:04]} 12. exf6 {[%emt 0:16:04]} bxc3 {[%emt 0:00:06]} 13. Qxc3 {[%emt 0:00:04]} gxf6 {[%emt 0:00:09]} 14. Bh4 {[%emt 0:00:04]} d5 {[%emt 0:25:38]} 15. Kb1 {[%emt 0:00:50]} Rc8 {[%emt 0:01:46]} 16. Nd4 {[%emt 0:06:49]} Na5 {[%emt 0:09:10]} 17. Qg3 {[%emt 0:02:51]} Nc4 {[%emt 0:05:24]} 18. Bxc4 {[%emt 0:10:34]} Rxc4 {[%emt 0:00:16]} 19. Qg7 {[%emt 0:03:26]} Rf8 {[%emt 0:00:07]} 20. b3 {[%emt 0:00:06]} Rc8 {[%emt 0:07:29]} 21. Qxh7 {[%emt 0:11:11]} Qc7 {[%emt 0:01:23]} 22. Rhf1 {[%emt 0:00:58]} Ba3 {[%emt 0:24:27]} 23. Qd3 {[%emt 0:02:20]} e5 {[%emt 0:04:59]} 24. Bxf6 {[%emt 0:07:17]} exd4 {[%emt 0:01:07]} 25. Rde1+ {[%emt 0:00:43]} Be6 {[%emt 0:00:09]} 26. f5 {[%emt 0:00:11]} Qc3 {[%emt 0:01:21]} 27. Qxc3 {[%emt 0:00:33]} Rxc3 {[%emt 0:00:42]} 28. Bxd4 {[%emt 0:01:04]} 1-0

[Event "47th GRE-chT 2019"]
[Site "Patra"]
[Date "2019.07.06"]
[Round "7.13"]
[White "Georgiev, Krum"]
[Black "Tetepoulidis, Ioannis"]
[Result "1-0"]
[ECO "B01"]
[WhiteElo "2323"]
[BlackElo "2117"]
[Annotator "NA"]
[PlyCount "51"]
[EventDate "2019.07.02"]
[EventCountry "GRE"]
[SourceTitle "playchess.com"]
[Source "ChessBase"]
[SourceQuality "1"]
[TimeControl "5400+30"]

1. e4 {[%emt 0:00:00]} d5 {[%emt 0:00:00]} 2. exd5 {[%emt 0:00:00]} Nf6 {[%emt 0:00:00]} 3. d4 {[%emt 0:00:00]} Bg4 {[%emt 0:00:00]} 4. Bb5+ {[%emt 0:00:19]} Nbd7 {[%emt 0:00:00]} 5. f3 $14 {[%emt 0:00:14]} Bf5 {[%emt 0:00:03]} 6. Nc3 {[%emt 0:00:12]} a6 {[%emt 0:00:27]} 7. Ba4 {[%emt 0:00:13]} b5 {[%emt 0:00:16]} 8. Bb3 {[%emt 0:00:13]} Nb6 {[%emt 0:00:06]} 9. Nge2 {[%emt 0:00:17]} Nfxd5 {[%emt 0:00:38]} 10. Nxd5 {[%emt 0:00:13]} Nxd5 {[%emt 0:00:06]} 11. Ng3 {[%emt 0:00:15]} Bg6 {[%emt 0:04:15]} 12. f4 {[%emt 0:03:47]} e6 {[%emt 0:01:04]} 13. f5 {[%emt 0:00:41]} Bxf5 {[%emt 0:06:57]} 14. Nxf5 {[%emt 0:00:29]} exf5 {[%emt 0:00:10]} 15. O-O {[%emt 0:01:10]} Be7 {[%emt 0:14:19]} 16. Rxf5 {[%emt 0:00:38]} Nf6 {[%emt 0:00:10]} 17. c3 {[%emt 0:03:39]} O-O {[%emt 0:03:12]} 18. Bg5 {[%emt 0:01:37]} Ne8 {[%emt 0:01:16]} 19. Qf3 {[%emt 0:11:48]} Nd6 {[%emt 0:03:52]} 20. Bxe7 {[%emt 0:00:15]} Qxe7 {[%emt 0:00:11]} 21. Re5 {[%emt 0:00:11]} Qd7 {[%emt 0:18:49]} 22. Bd5 {[%emt 0:00:25]} Rab8 {[%emt 0:01:02]} 23. Rae1 {[%emt 0:01:06]} Rfe8 {[%emt 0:01:47]} 24. R1e2 {[%emt 0:04:13]} Rb6 {[%emt 0:03:09]} 25. Rxe8+ {[%emt 0:02:31]} Nxe8 {[%emt 0:00:02]} 26. Qxf7+ 1-0

[Event "47th GRE-chT 2019"]
[Site "Patra"]
[Date "2019.07.06"]
[Round "7.14"]
[White "Papadopoulos, Panayotis"]
[Black "Kanakaris, Georgios"]
[Result "1/2-1/2"]
[ECO "A49"]
[WhiteElo "2165"]
[BlackElo "2409"]
[Annotator "NA"]
[PlyCount "95"]
[EventDate "2019.07.02"]
[EventCountry "GRE"]
[SourceTitle "playchess.com"]
[Source "ChessBase"]
[SourceQuality "1"]
[TimeControl "5400+30"]

1. Nf3 {[%emt 0:00:00]} Nf6 {[%emt 0:00:00]} 2. b3 {[%emt 0:00:20]} d6 {[%emt 0:00:00]} 3. d4 {[%emt 0:08:20]} g6 {[%emt 0:00:27]} 4. Bb2 {[%emt 0:00:16]} Bg7 {[%emt 0:00:18]} 5. g3 {[%emt 0:01:27]} O-O {[%emt 0:00:02]} 6. Bg2 {[%emt 0:13:10]} Nc6 {[%emt 0:00:07]} 7. O-O {[%emt 0:00:19]} Bf5 {[%emt 0:02:03]} 8. Na3 {[%emt 0:08:42]} Be4 {[%emt 0:02:40]} 9. c4 {[%emt 0:05:50]} Nb4 {[%emt 0:05:42]} 10. Qd2 {[%emt 0:06:12]} c5 {[%emt 0:06:30]} 11. Rfd1 {[%emt 0:13:11]} a6 {[%emt 0:17:19]} 12. Bc3 {[%emt 0:08:33]} Qa5 {[%emt 0:08:20]} 13. Nc2 {[%emt 0:00:05]} Bxc2 {[%emt 0:00:03]} 14. Bxb4 {[%emt 0:00:28]} Qxb4 {[%emt 0:00:04]} 15. Qxc2 {[%emt 0:01:28]} Rac8 {[%emt 0:11:31]} 16. Rac1 {[%emt 0:04:38]} Rc7 {[%emt 0:05:32]} 17. dxc5 {[%emt 0:00:12]} Qxc5 {[%emt 0:01:28]} 18. Ne1 {[%emt 0:09:59]} Qa3 {[%emt 0:03:00]} 19. Qb1 {[%emt 0:01:00]} Nd7 {[%emt 0:01:40]} 20. Nc2 {[%emt 0:00:43]} Qc5 {[%emt 0:02:50]} 21. Ne3 {[%emt 0:08:08]} Nf6 {[%emt 0:07:43]} 22. Nd5 {[%emt 0:00:45]} Rd7 {[%emt 0:01:25]} 23. b4 {[%emt 0:00:03]} Qa7 {[%emt 0:02:14]} 24. c5 {[%emt 0:00:57]} Nxd5 {[%emt 0:00:38]} 25. Rxd5 {[%emt 0:01:01]} Rfd8 {[%emt 0:03:10]} 26. Rcd1 {[%emt 0:01:08]} Bf8 {[%emt 0:04:50]} 27. R5d3 {[%emt 0:01:05]} e6 {[%emt 0:01:14]} 28. Qb3 {[%emt 0:02:35]} Qb8 {[%emt 0:02:58]} 29. Qa4 {[%emt 0:01:37]} Qc8 {[%emt 0:01:22]} 30. h4 {[%emt 0:00:20]} h5 {[%emt 0:01:56]} 31. a3 {[%emt 0:01:13]} Be7 {[%emt 0:00:52]} 32. e3 {[%emt 0:00:23]} Bf8 {[%emt 0:01:33]} 33. R3d2 {[%emt 0:00:37]} Be7 {[%emt 0:00:41]} 34. Rd3 {[%emt 0:00:06]} Bf8 {[%emt 0:00:12]} 35. R3d2 {[%emt 0:00:08]} Be7 {[%emt 0:00:09]} 36. Kh2 {[%emt 0:01:15]} Bf8 {[%emt 0:00:04]} 37. Rd3 {[%emt 0:00:25]} Be7 {[%emt 0:00:08]} 38. R1d2 {[%emt 0:00:18]} Bf8 {[%emt 0:01:52]} 39. Bf3 {[%emt 0:01:32]} Be7 {[%emt 0:00:00]} 40. Kg2 {[%emt 0:00:00]} Bf8 {[%emt 0:00:00]} 41. Kf1 {[%emt 0:00:00]} Rc7 {[%emt 0:00:00]} 42. Kg2 {[%emt 0:00:00]} Qb8 {[%emt 0:00:00]} 43. Qd1 {[%emt 0:00:00]} Rcd7 {[%emt 0:00:00]} 44. Kh2 {[%emt 0:00:00]} Rc7 {[%emt 0:00:00]} 45. Bh1 {[%emt 0:00:00]} Rcd7 {[%emt 0:00:00]} 46. Kg1 {[%emt 0:00:00]} Qc7 {[%emt 0:00:44]} 47. Kh2 {[%emt 0:00:00]} Qb8 {[%emt 0:00:55]} 48. f4 {[%emt 0:00:00]} 1/2-1/2

[Event "47th GRE-chT 2019"]
[Site "Patra"]
[Date "2019.07.06"]
[Round "7.14"]
[White "Exizoglou, Dimitrios"]
[Black "Alexiadis, Hristos"]
[Result "1/2-1/2"]
[ECO "B92"]
[WhiteElo "2072"]
[BlackElo "2344"]
[Annotator "NA"]
[PlyCount "95"]
[EventDate "2019.07.02"]
[EventCountry "GRE"]
[SourceTitle "playchess.com"]
[Source "ChessBase"]
[SourceQuality "1"]
[TimeControl "5400+30"]

1. e4 {[%emt 0:06:27]} c5 {[%emt 0:09:59]} 2. Nf3 {[%emt 0:00:31]} d6 {[%emt 0:00:11]} 3. d4 {[%emt 0:00:31]} cxd4 {[%emt 0:00:38]} 4. Nxd4 {[%emt 0:00:07]} Nf6 {[%emt 0:00:03]} 5. Nc3 {[%emt 0:00:09]} a6 {[%emt 0:00:08]} 6. Be2 {[%emt 0:00:40]} e5 {[%emt 0:00:06]} 7. Nf3 {[%emt 0:00:07]} h6 {[%emt 0:00:42]} 8. a4 {[%emt 0:00:12]} Be7 {[%emt 0:00:07]} 9. Nd2 {[%emt 0:05:13]} O-O {[%emt 0:05:12]} 10. Nc4 {[%emt 0:00:22]} Nc6 {[%emt 0:00:51]} 11. Ne3 {[%emt 0:01:35]} Nb4 {[%emt 0:12:26]} 12. Bf3 {[%emt 0:00:17]} Be6 {[%emt 0:01:04]} 13. O-O {[%emt 0:00:14]} Rc8 {[%emt 0:00:17]} 14. a5 {[%emt 0:13:42]} Rxc3 {[%emt 0:08:26]} 15. bxc3 {[%emt 0:00:15]} Nc6 {[%emt 0:00:03]} 16. Ba3 {[%emt 0:00:20]} Nxa5 {[%emt 0:00:13]} 17. Qd3 {[%emt 0:09:48]} Qc7 {[%emt 0:00:54]} 18. Rfd1 {[%emt 0:00:19]} Rd8 {[%emt 0:00:16]} 19. Be2 {[%emt 0:05:01]} Nc6 {[%emt 0:07:13]} 20. c4 {[%emt 0:02:00]} Nd4 {[%emt 0:00:35]} 21. Bf1 {[%emt 0:02:42]} Nd7 {[%emt 0:07:33]} 22. Rab1 {[%emt 0:06:47]} Nc5 {[%emt 0:00:39]} 23. Bxc5 {[%emt 0:00:07]} dxc5 {[%emt 0:00:03]} 24. Nd5 {[%emt 0:00:12]} Bxd5 {[%emt 0:00:03]} 25. cxd5 {[%emt 0:00:07]} b5 {[%emt 0:00:04]} 26. Qa3 {[%emt 0:07:27]} Qb7 {[%emt 0:10:50]} 27. Qa2 {[%emt 0:06:00]} c4 {[%emt 0:12:40]} 28. Bxc4 {[%emt 0:00:08]} Qc8 {[%emt 0:00:22]} 29. Bd3 {[%emt 0:13:00]} Rd6 {[%emt 0:01:03]} 30. Rb4 {[%emt 0:07:49]} Rg6 {[%emt 0:00:14]} 31. Rxd4 {[%emt 0:00:21]} Rxg2+ {[%emt 0:01:01]} 32. Kxg2 {[%emt 0:00:13]} Qg4+ {[%emt 0:00:04]} 33. Kf1 {[%emt 0:00:10]} Qxd1+ {[%emt 0:00:05]} 34. Kg2 {[%emt 0:00:07]} Qg4+ {[%emt 0:00:09]} 35. Kf1 {[%emt 0:00:05]} exd4 {[%emt 0:00:45]} 36. Qxa6 {[%emt 0:00:56]} Qh3+ {[%emt 0:02:36]} 37. Ke2 {[%emt 0:00:18]} Qg4+ {[%emt 0:01:23]} 38. Kf1 {[%emt 0:01:02]} g6 {[%emt 0:00:11]} 39. Qxb5 {[%emt 0:02:41]} Qh3+ {[%emt 0:02:19]} 40. Ke2 {[%emt 0:00:00]} Kg7 {[%emt 0:00:00]} 41. Qb8 {[%emt 0:00:00]} Qg4+ {[%emt 0:00:00]} 42. Kf1 {[%emt 0:00:00]} Bh4 {[%emt 0:00:00]} 43. Qe5+ {[%emt 0:00:00]} f6 {[%emt 0:00:00]} 44. Qxd4 {[%emt 0:00:00]} Qd1+ {[%emt 0:00:00]} 45. Kg2 {[%emt 0:00:00]} Qg4+ {[%emt 0:00:00]} 46. Kf1 {[%emt 0:00:00]} Qd1+ {[%emt 0:00:00]} 47. Kg2 {[%emt 0:00:00]} Qg4+ {[%emt 0:00:00]} 48. Kf1 {[%emt 0:00:00]} 1/2-1/2

[Event "47th GRE-chT 2019"]
[Site "Patra"]
[Date "2019.07.06"]
[Round "7.15"]
[White "Paehtz, Elisabeth"]
[Black "Grapsa, Georgia"]
[Result "1/2-1/2"]
[ECO "E00"]
[WhiteElo "2473"]
[BlackElo "2038"]
[Annotator "ChessBase"]
[PlyCount "59"]
[EventDate "2019.07.02"]
[EventCountry "GRE"]
[SourceTitle "playchess.com"]
[Source "ChessBase"]
[SourceQuality "1"]
[TimeControl "5400+30"]

1. d4 {[%emt 0:00:00]} Nf6 {[%emt 0:00:16]} 2. c4 {[%emt 0:00:00]} e6 {[%emt 0:00:00]} 3. g3 {[%emt 0:00:00]} Bb4+ {[%emt 0:00:00]} 4. Nd2 {[%emt 0:00:00]} O-O {[%emt 0:00:09]} 5. Bg2 {[%emt 0:00:55]} c5 {[%emt 0:03:31]} 6. dxc5 {[%emt 0:03:21]} Bxc5 {[%emt 0:00:25]} 7. Nh3 {[%emt 0:01:19]} e5 {[%emt 0:08:04]} 8. O-O {[%emt 0:00:40]} Nc6 {[%emt 0:01:14]} 9. Nb3 {[%emt 0:00:16]} Bb6 {[%emt 0:00:50]} 10. c5 {[%emt 0:06:30]} Bc7 {[%emt 0:00:07]} 11. Ng5 {[%emt 0:05:28]} a5 {[%emt 0:02:44]} 12. Nd2 {[%emt 0:15:06]} d5 {[%emt 0:08:35]} 13. cxd6 {[%emt 0:00:09]} Qxd6 {[%emt 0:00:04]} 14. Nde4 {[%emt 0:01:53]} Qe7 {[%emt 0:04:55]} 15. Be3 {[%emt 0:03:52]} Nxe4 {[%emt 0:06:26]} 16. Nxe4 {[%emt 0:01:51]} Rd8 {[%emt 0:03:52]} 17. Qe1 {[%emt 0:06:46]} Nd4 {[%emt 0:07:22]} 18. Rc1 {[%emt 0:00:09]} Bg4 {[%emt 0:00:32]} 19. Nc3 {[%emt 0:06:23]} Qe6 {[%emt 0:23:15]} 20. b3 {[%emt 0:05:11]} a4 {[%emt 0:06:42]} 21. Bxd4 {[%emt 0:11:58]} exd4 {[%emt 0:00:17]} 22. Nxa4 {[%emt 0:00:52]} Bd6 {[%emt 0:08:36]} 23. f3 {[%emt 0:08:40]} Bf5 {[%emt 0:01:02]} 24. f4 {[%emt 0:00:17]} b5 {[%emt 0:03:32]} 25. Nc5 {[%emt 0:11:07]} Bxc5 {[%emt 0:04:36]} 26. Rxc5 {[%emt 0:00:10]} Rxa2 {[%emt 0:01:13]} 27. Re5 {[%emt 0:00:06]} Qc8 {[%emt 0:01:43]} 28. b4 {[%emt 0:06:39]} Re8 {[%emt 0:01:55]} 29. Qd1 {[%emt 0:02:49]} Rxe5 {[%emt 0:00:26]} 30. fxe5 {[%emt 0:00:05]} 1/2-1/2

[Event "47th GRE-chT 2019"]
[Site "Patra"]
[Date "2019.07.06"]
[Round "7.15"]
[White "Szczepkowska, Karina"]
[Black "Salimova, Nurgyul"]
[Result "1/2-1/2"]
[ECO "D37"]
[WhiteElo "2425"]
[BlackElo "2416"]
[Annotator "NA"]
[PlyCount "46"]
[EventDate "2019.07.02"]
[EventCountry "GRE"]
[SourceTitle "playchess.com"]
[Source "ChessBase"]
[SourceQuality "1"]
[TimeControl "5400+30"]

1. d4 {[%emt 0:00:00]} Nf6 {[%emt 0:00:00]} 2. c4 {[%emt 0:00:09]} e6 {[%emt 0:00:00]} 3. Nf3 {[%emt 0:00:05]} d5 {[%emt 0:00:00]} 4. Nc3 {[%emt 0:00:11]} a6 {[%emt 0:00:27]} 5. cxd5 {[%emt 0:01:53]} exd5 {[%emt 0:00:07]} 6. Bg5 {[%emt 0:00:11]} Be6 {[%emt 0:01:39]} 7. Bxf6 {[%emt 0:02:51]} Qxf6 {[%emt 0:03:57]} 8. Qb3 {[%emt 0:00:06]} b5 {[%emt 0:02:39]} 9. e3 {[%emt 0:14:34]} Qd8 {[%emt 0:03:50]} 10. a4 {[%emt 0:03:05]} b4 {[%emt 0:01:39]} 11. Na2 {[%emt 0:03:19]} Nd7 {[%emt 0:02:57]} 12. a5 {[%emt 0:03:53]} c5 {[%emt 0:13:42]} 13. Qa4 {[%emt 0:00:44]} Be7 {[%emt 0:01:17]} 14. Be2 {[%emt 0:04:28]} O-O {[%emt 0:13:04]} 15. O-O {[%emt 0:00:04]} Qb8 {[%emt 0:05:44]} 16. dxc5 {[%emt 0:03:55]} Bxc5 {[%emt 0:00:50]} 17. Nd4 {[%emt 0:06:19]} Qd6 {[%emt 0:04:11]} 18. Rac1 {[%emt 0:02:55]} Rfc8 {[%emt 0:03:55]} 19. Qd1 {[%emt 0:07:27]} Ne5 {[%emt 0:03:16]} 20. Nb3 {[%emt 0:09:48]} Ba7 {[%emt 0:01:43]} 21. Nd4 {[%emt 0:02:41]} Bc5 {[%emt 0:11:57]} 22. Nb3 {[%emt 0:00:22]} Ba7 {[%emt 0:00:13]} 23. Nd4 {[%emt 0:00:05]} Bc5 {[%emt 0:02:01]} 1/2-1/2

[Event "47th GRE-chT 2019"]
[Site "Patra"]
[Date "2019.07.06"]
[Round "7.16"]
[White "Petraki, Evaggelia"]
[Black "Tsolakidou, Stavroula"]
[Result "0-1"]
[ECO "A21"]
[WhiteElo "1785"]
[BlackElo "2423"]
[Annotator "NA"]
[PlyCount "52"]
[EventDate "2019.07.02"]
[EventCountry "GRE"]
[SourceTitle "playchess.com"]
[Source "ChessBase"]
[SourceQuality "1"]
[TimeControl "5400+30"]

1. c4 {[%emt 0:00:28]} e5 {[%emt 0:00:00]} 2. Nc3 {[%emt 0:00:22]} Bb4 {[%emt 0:00:00]} 3. g3 {[%emt 0:00:51]} Bxc3 {[%emt 0:01:16]} 4. bxc3 {[%emt 0:02:30]} d6 {[%emt 0:00:26]} 5. Bg2 {[%emt 0:08:08]} f5 {[%emt 0:03:31]} 6. e3 {[%emt 0:07:55]} Nf6 {[%emt 0:00:31]} 7. Ne2 {[%emt 0:09:26]} Nbd7 {[%emt 0:05:30]} 8. O-O {[%emt 0:00:55]} O-O {[%emt 0:03:05]} 9. Ba3 {[%emt 0:18:41]} Rb8 {[%emt 0:06:14]} 10. Rb1 {[%emt 0:04:06]} Qe7 {[%emt 0:25:01]} 11. d4 {[%emt 0:00:23]} c5 {[%emt 0:02:35]} 12. Qa4 {[%emt 0:01:58]} a6 {[%emt 0:01:33]} 13. Qc2 {[%emt 0:06:58]} g6 {[%emt 0:08:55]} 14. Rb2 {[%emt 0:06:13]} Qf7 {[%emt 0:07:34]} 15. Rfb1 {[%emt 0:02:22]} e4 {[%emt 0:01:32]} 16. Qa4 {[%emt 0:00:29]} g5 {[%emt 0:08:51]} 17. f3 {[%emt 0:00:50]} exf3 {[%emt 0:00:05]} 18. Bxf3 {[%emt 0:00:23]} Qe7 {[%emt 0:02:26]} 19. Qd1 {[%emt 0:01:10]} Qxe3+ {[%emt 0:00:14]} 20. Kg2 {[%emt 0:05:27]} f4 {[%emt 0:05:18]} 21. gxf4 {[%emt 0:02:42]} g4 {[%emt 0:02:36]} 22. Bd5+ {[%emt 0:00:07]} Nxd5 {[%emt 0:00:24]} 23. cxd5 {[%emt 0:00:34]} Nf6 {[%emt 0:02:29]} 24. Ng3 {[%emt 0:01:01]} Nxd5 {[%emt 0:00:09]} 25. dxc5 {[%emt 0:01:21]} Nxf4+ {[%emt 0:00:05]} 26. Kh1 {[%emt 0:00:51]} Bd7 {[%emt 0:03:22]} 0-1

[Event "47th GRE-chT 2019"]
[Site "Patra"]
[Date "2019.07.06"]
[Round "7.16"]
[White "Batzoli, Maria"]
[Black "Louka, Magdalini"]
[Result "0-1"]
[ECO "D00"]
[WhiteElo "1390"]
[BlackElo "1766"]
[Annotator "NA"]
[PlyCount "154"]
[EventDate "2019.07.02"]
[EventCountry "GRE"]
[SourceTitle "playchess.com"]
[Source "ChessBase"]
[SourceQuality "1"]
[TimeControl "5400+30"]

1. d4 d5 2. Bf4 Nf6 3. e3 e6 4. Nf3 c5 5. c3 Bd6 6. Bg3 O-O 7. Nbd2 Nc6 8. Ne5 Qe7 9. f4 Nd7 10. Bd3 f6 11. Bxh7+ Kxh7 12. Qh5+ Kg8 13. Ng6 Qe8 14. Qh8+ Kf7 15. Nxf8 Qxf8 16. Qxf8+ Bxf8 17. Ke2 b6 18. Bf2 Ba6+ 19. Kf3 e5 20. g4 Bd6 21. g5 e4+ 22. Kg4 Be2+ 23. Kh3 Rh8+ 24. Kg2 cxd4 25. cxd4 Bb4 26. Rhc1 Na5 27. Rc7 Bxd2 28. Rxd7+ Kg6 29. b3 Nc6 30. a3 Nxd4 31. exd4 Bxf4 32. Bg3 Bxg5 33. Rxd5 Bf3+ 34. Kf2 Rc8 35. Ra2 Rc3 36. Rd7 Be3+ 37. Kf1 Rc1+ 38. Be1 Bg5 39. Re2 Bxe2+ 40. Kxe2 Rc2+ 41. Kd1 Rxh2 42. Rxa7 e3 43. Re7 Ra2 44. Bb4 f5 45. Re6+ Kh5 46. d5 f4 {[%emt 1:30:30]} 47. d6 f3 48. Re5 Rg2 49. d7 Rg1+ 50. Kc2 f2 51. d8=Q f1=Q 52. Qh8+ Kg6 53. Qe8+ Kh7 54. Qh5+ Bh6 55. Qf5+ Qxf5+ 56. Rxf5 Kg6 57. Rb5 Bf4 58. Rxb6+ Kf5 59. Kd3 g5 60. Bc5 Rd1+ 61. Ke2 Rd2+ 62. Kf1 Kg4 63. Rh6 Kf3 64. Rh3+ Bg3 65. Rxg3+ Kxg3 66. Bxe3 Rd5 67. Ke2 g4 68. b4 Kg2 69. a4 g3 70. b5 Re5 71. b6 Re7 72. a5 Kh1 73. Kd3 Rxe3+ 74. Kxe3 g2 75. b7 g1=Q+ 76. Kf4 Qd4+ 77. Kg3 Qg7+ 0-1